bitfinex-derivatives/quotes_ETHF0:USTF0_20241023
["timestamp","ask_amount","ask_price","bid_price","bid_amount"]
[1729663956972,1.38,2620.0,2619.7,1.72374]
[1729663957162,1.7237,2620.0,2619.9,1.38]
[1729663957567,5.5405,2620.0,2619.9,1.38]
[1729663957774,1.7237,2620.0,2619.9,1.38]
[1729663958178,1.38,2620.0,2619.8,1.8061]
[1729663958364,1.72371,2619.9,2619.8,0.4261]
[1729663961176,1.72371,2619.9,2619.8,1.8061]
[1729663965577,0.34371,2619.9,2619.8,1.8061]
[1729663966173,1.72371,2619.9,2619.8,1.8061]
[1729663966573,0.34371,2619.9,2619.8,1.8061]
[1729663966970,1.38,2619.9,2619.8,0.909]
[1729663967176,2.12501,2619.9,2619.8,0.909]
[1729663968883,0.34372,2619.8,2619.7,1.38]
[1729663969082,0.74352,2619.8,2619.7,2.289]
[1729663973587,2.12352,2619.8,2619.7,1.38]
[1729663973784,2.12352,2619.8,2619.7,2.287]
[1729663974387,5.33132,2619.8,2619.7,2.287]
[1729663975679,2.12352,2619.8,2619.7,2.287]
[1729663976289,2.12352,2619.8,2619.7,0.907]
[1729663976485,1.7798,2619.8,2619.5,1.38]
[1729663976685,1.7798,2619.8,2619.4,1.38]
[1729663976686,0.34376,2619.5,2619.4,1.38]
[1729663976884,0.34376,2619.5,2619.4,2.287]
[1729663977081,0.73196,2619.5,2619.4,2.287]
[1729663977988,0.73196,2619.5,2619.4,0.907]
[1729663978288,0.73196,2619.5,2619.4,2.287]
[1729663982093,0.76744,2619.7,2619.6,0.34375]
[1729663982291,0.76744,2619.7,2619.6,1.72375]
[1729663982292,0.34374,2619.7,2619.6,1.72375]
[1729663982592,0.34374,2619.7,2619.6,1.38]
[1729663982892,0.34374,2619.7,2619.6,2.13715]
[1729663983586,0.34374,2619.7,2619.6,1.7934]
[1729663984487,0.34374,2619.7,2619.6,2.13715]
[1729663986889,0.34374,2619.7,2619.6,1.7934]
[1729663987691,0.34374,2619.7,2619.6,2.13715]
[1729663988686,0.34374,2619.7,2619.6,1.7934]
[1729663994292,0.34372,2619.8,2619.7,0.34374]
[1729663994498,3.5925,2620.0,2619.7,1.38]
[1729663994499,0.3847,2620.0,2619.7,1.38]
[1729663994702,0.7284,2620.0,2619.9,1.38]
[1729663994899,0.7284,2620.0,2619.9,2.287]
[1729663995994,0.3437,2620.0,2619.9,2.287]
[1729663996401,0.3437,2620.0,2619.9,3.5067]
[1729663997812,3.2078,2620.3,2619.9,3.5067]
[1729663998105,3.55146,2620.3,2620.2,1.38]
[1729663998312,0.34366,2620.3,2620.2,1.38]
[1729664004123,1.12346,2620.3,2620.2,1.38]
[1729664004607,5.9766,2620.3,2619.9,0.3936]
[1729664004807,0.34375,2619.6,2619.5,0.4003]
[1729664005022,0.34375,2619.6,2619.5,3.0763]
[1729664005316,0.34375,2619.6,2619.5,3.42006]
[1729664006119,0.34375,2619.6,2619.5,3.0763]
[1729664007811,0.34375,2619.6,2619.5,3.42006]
[1729664008118,0.34375,2619.6,2619.5,2.51506]
[1729664008420,0.34375,2619.6,2619.5,3.42006]
[1729664010621,0.34374,2619.7,2619.6,0.34374]
[1729664010822,0.34374,2619.7,2619.6,1.72374]
[1729664012729,0.4134,2619.8,2619.6,1.38]
[1729664013027,0.75713,2619.8,2619.7,1.72374]
[1729664014533,0.4134,2619.8,2619.7,1.72374]
[1729664014720,0.75712,2619.8,2619.7,1.72374]
[1729664021229,0.75712,2619.8,2619.7,2.62874]
[1729664027932,0.75712,2619.8,2619.7,2.285]
[1729664029136,0.75712,2619.8,2619.7,2.62874]
[1729664030136,0.75712,2619.8,2619.7,2.285]
[1729664030535,0.75712,2619.8,2619.7,2.62874]
[1729664031233,0.75712,2619.8,2619.7,2.285]
[1729664032434,0.3437,2620.0,2619.8,0.34371]
[1729664032640,0.3437,2620.0,2619.9,2.1908]
[1729664041642,0.4262,2620.3,2619.9,2.1908]
[1729664041945,0.76986,2620.3,2620.2,1.38]
[1729664042135,0.76986,2620.3,2620.2,2.284]
[1729664044148,0.76986,2620.3,2620.2,2.7021]
[1729664045942,0.76986,2620.3,2620.2,3.04577]
[1729664046353,0.76986,2620.3,2620.2,2.7021]
[1729664046653,0.76986,2620.3,2620.2,3.04577]
[1729664047950,0.76986,2620.3,2620.2,2.7021]
[1729664048352,0.34366,2620.3,2620.2,2.7021]
[1729664048649,4.4386,2620.5,2620.2,4.0821]
[1729664048848,4.4386,2620.5,2620.4,1.38]
[1729664048849,3.94974,2620.5,2620.4,1.38]
[1729664049049,0.74194,2620.5,2620.4,1.38]
[1729664052252,0.34364,2620.5,2620.4,1.38]
[1729664053557,1.72363,2620.5,2620.4,0.904]
[1729664054056,5.196,2620.5,2620.4,2.284]
[1729664054255,5.53963,2620.5,2620.4,2.284]
[1729664055956,8.74743,2620.5,2620.4,2.284]
[1729664056758,8.74743,2620.5,2620.4,1.38]
[1729664056962,8.74743,2620.5,2620.4,2.284]
[1729664058458,8.74743,2620.5,2620.4,0.904]
[1729664059067,8.74826843,2620.5,2620.4,0.904]
[1729664060267,5.54046843,2620.5,2620.4,0.904]
[1729664061074,5.92616843,2620.5,2620.4,0.904]
[1729664061375,5.92616843,2620.5,2620.4,2.284]
[1729664066971,5.92616843,2620.5,2620.4,1.38]
[1729664071978,5.92616843,2620.5,2620.4,1.8057]
[1729664073384,5.92616843,2620.5,2620.4,0.4257]
[1729664073584,5.92616843,2620.5,2620.4,1.8057]
[1729664076374,2.11016843,2620.5,2620.4,1.8057]
[1729664076682,5.92616843,2620.5,2620.4,1.8057]
[1729664076882,2.11016843,2620.5,2620.4,1.8057]
[1729664077278,5.92616843,2620.5,2620.4,1.8057]
[1729664078882,0.73016843,2620.5,2620.4,1.8057]
[1729664079077,0.34446843,2620.5,2620.4,1.8057]
[1729664084886,0.34446843,2620.5,2620.4,0.4257]
[1729664085090,0.75196843,2620.5,2620.4,2.7087]
[1729664088390,0.34446843,2620.5,2620.4,2.7087]
[1729664095713,0.34446843,2620.5,2620.4,1.3287]
[1729664098110,0.34446843,2620.5,2620.4,2.7087]
[1729664099500,0.34446843,2620.5,2620.4,1.3287]
[1729664099707,1.72446843,2620.5,2620.4,1.3277]
[1729664099903,0.34446843,2620.5,2620.4,1.3277]
[1729664101005,0.00083843,2620.5,2620.4,1.67138]
[1729664101603,0.00083843,2620.5,2620.4,3.05138]
[1729664102706,0.34449843,2620.5,2620.4,3.05138]
[1729664103301,0.34449843,2620.5,2620.4,2.7077]
[1729664103906,0.34449843,2620.5,2620.4,3.05138]
[1729664104712,0.34449843,2620.5,2620.4,2.7077]
[1729664106116,0.34368,2620.4,2620.3,0.3921]
[1729664106418,0.34369,2620.3,2620.2,0.3972]
[1729664106710,3.94189,2620.3,2620.2,1.2992]
[1729664106917,3.94189,2620.3,2620.2,2.6792]
[1729664110219,3.94189,2620.3,2620.2,1.7772]
[1729664110522,3.94189,2620.3,2620.2,2.282]
[1729664110523,5.32189,2620.3,2620.2,2.282]
[1729664112116,4.9782,2620.3,2620.0,0.8259]
[1729664112320,5.32189,2620.3,2620.2,2.282]
[1729664113524,3.94189,2620.3,2620.2,2.282]
[1729664114715,5.32189,2620.3,2620.2,1.38]
[1729664115014,0.34372,2620.1,2620.0,1.3057]
[1729664115215,1.72372,2620.1,2620.0,1.3057]
[1729664115414,0.34372,2620.1,2620.0,2.6857]
[1729664116617,0.34372,2620.1,2620.0,1.7837]
[1729664116923,0.34372,2620.1,2620.0,3.02943]
[1729664119424,3.5982,2620.3,2620.1,0.34371]
[1729664119425,0.34371,2620.2,2620.1,0.34371]
[1729664119624,0.34371,2620.2,2620.1,2.13521]
[1729664119825,0.34371,2620.2,2620.1,2.53501]
[1729664121922,0.00083843,2620.5,2620.1,2.1913]
[1729664122123,0.00083843,2620.5,2620.4,1.38]
[1729664122621,0.34449843,2620.5,2620.4,1.38]
[1729664124917,1.72449843,2620.5,2620.4,1.38]
[1729664125122,0.34449843,2620.5,2620.4,1.38]
[1729664129126,0.34366,2620.5,2620.4,1.38]
[1729664131223,0.34366,2620.5,2620.4,1.72368]
[1729664131436,0.34449843,2620.5,2620.4,1.38]
[1729664137242,0.34449843,2620.5,2620.4,2.281]
[1729664142951,0.34449843,2620.5,2620.4,2.62468]
[1729664143453,0.34449843,2620.5,2620.4,2.281]
[1729664145344,0.34449843,2620.5,2620.4,1.38]
[1729664145545,0.34449843,2620.5,2620.4,2.281]
[1729664146743,0.75689843,2620.5,2620.4,2.281]
[1729664148155,0.75689843,2620.5,2620.4,2.62468]
[1729664148545,0.34449843,2620.5,2620.4,2.62468]
[1729664152353,0.00083843,2620.5,2620.4,2.62468]
[1729664152958,0.34449843,2620.5,2620.4,2.62468]
[1729664153253,0.00083843,2620.5,2620.4,2.62468]
[1729664153854,0.34449843,2620.5,2620.4,2.62468]
[1729664154250,0.00083843,2620.5,2620.4,2.62468]
[1729664154957,3.2078,2620.9,2620.8,0.34362]
[1729664155153,3.2078,2620.9,2620.8,5.53882]
[1729664155347,3.2078,2620.9,2620.8,46.33882]
[1729664155950,3.2078,2620.9,2620.8,5.53882]
[1729664157146,3.2078,2621.2,2620.8,5.53882]
[1729664157347,3.55137,2621.2,2621.1,1.38]
[1729664158258,3.55137,2621.2,2621.1,1.7707]
[1729664159254,4.93137,2621.2,2621.1,1.7707]
[1729664159456,3.55137,2621.2,2621.1,1.7707]
[1729664159662,3.55137,2621.2,2621.1,1.38]
[1729664161353,3.55137,2621.2,2621.1,2.281]
[1729664163457,3.55137,2621.2,2621.1,1.38]
[1729664163657,0.34361,2620.9,2620.8,0.3907]
[1729664163858,0.34361,2620.9,2620.8,2.6717]
[1729664165258,0.34361,2620.9,2620.8,3.01532]
[1729664165457,0.34361,2620.9,2620.8,2.6717]
[1729664165959,0.34361,2620.9,2620.8,1.38]
[1729664166159,0.34361,2620.9,2620.8,2.281]
[1729664166661,0.34361,2620.9,2620.8,2.62462]
[1729664167156,0.4256,2621.0,2620.8,2.281]
[1729664167358,0.7692,2621.0,2620.9,1.38]
[1729664168263,0.7692,2621.0,2620.9,1.72361]
[1729664168663,0.4256,2621.0,2620.9,2.14941]
[1729664169171,0.4256,2621.0,2620.9,2.55951]
[1729664173561,0.7692,2621.0,2620.9,2.2159]
[1729664173762,0.7692,2621.0,2620.9,3.05041]
[1729664176367,0.4256,2621.0,2620.9,3.05041]
[1729664176966,0.7692,2621.0,2620.9,3.05041]
[1729664178763,0.4256,2621.0,2620.9,3.05041]
[1729664179276,0.7692,2621.0,2620.9,3.05041]
[1729664180370,0.4256,2621.0,2620.9,3.05041]
[1729664181372,0.7692,2621.0,2620.9,3.05041]
[1729664181578,0.4256,2621.0,2620.9,3.05041]
[1729664182373,0.7692,2621.0,2620.9,3.05041]
[1729664182971,0.4256,2621.0,2620.9,3.05041]
[1729664184069,0.7692,2621.0,2620.9,3.05041]
[1729664184476,0.4256,2621.0,2620.9,3.05041]
[1729664185283,0.7692,2621.0,2620.9,3.05041]
[1729664186275,0.4256,2621.0,2620.9,3.05041]
[1729664186475,0.7692,2621.0,2620.9,3.05041]
[1729664186673,0.4256,2621.0,2620.9,3.05041]
[1729664187774,3.55139,2621.1,2620.9,2.7068]
[1729664187979,3.55139,2621.1,2621.0,2.1084]
[1729664188873,3.2078,2621.1,2621.0,2.1084]
[1729664190079,3.55139,2621.1,2621.0,2.1084]
[1729664190267,3.2078,2621.1,2621.0,2.1084]
[1729664190879,3.55139,2621.1,2621.0,2.1084]
[1729664191278,0.34358,2621.2,2621.1,0.34358]
[1729664191480,0.34358,2621.2,2621.1,1.72358]
[1729664193174,0.34358,2621.2,2621.1,1.72359]
[1729664193776,0.34358,2621.2,2621.1,1.38]
[1729664194771,3.2078,2621.3,2621.2,0.34357]
[1729664194975,0.34353,2621.6,2621.5,0.34353]
[1729664195187,0.34353,2621.6,2621.5,2.62353]
[1729664195984,1.15281,2621.7,2621.6,0.34352]
[1729664196187,1.15281,2621.7,2621.6,1.72352]
[1729664196386,0.4229,2621.7,2621.6,1.72352]
[1729664196687,0.76641,2621.7,2621.6,1.72352]
[1729664197081,0.76641,2621.7,2621.6,1.38]
[1729664197282,0.76641,2621.7,2621.6,1.72352]
[1729664198587,0.76641,2621.7,2621.6,1.38]
[1729664199588,0.76641,2621.7,2621.6,1.84287636]
[1729664199780,0.76641,2621.7,2621.6,1.49935636]
[1729664200381,0.76641,2621.7,2621.6,2.35852506]
[1729664201082,0.76641,2621.7,2621.6,2.2391687]
[1729664201284,0.76641,2621.7,2621.6,2.5826887]
[1729664202387,0.76641,2621.7,2621.6,2.2391687]
[1729664202986,1.15201,2621.7,2621.6,2.2391687]
[1729664205090,1.15201,2621.7,2621.6,2.5826887]
[1729664205590,1.15201,2621.7,2621.6,2.2391687]
[1729664206190,1.15201,2621.7,2621.6,3.1391687]
[1729664209694,1.15201,2621.7,2621.6,3.4826887]
[1729664211391,0.76641,2621.7,2621.6,3.4826887]
[1729664211593,0.34351,2621.7,2621.6,3.4826887]
[1729664214297,4.0057,2622.0,2621.6,3.4826887]
[1729664214498,4.34917,2622.0,2621.9,1.38]
[1729664215197,8.16277,2622.0,2621.9,1.38]
[1729664215497,9.54277,2622.0,2621.9,1.38]
[1729664216090,3.6024,2622.0,2621.9,1.72348]
[1729664216290,4.0238,2622.3,2621.9,1.38]
[1729664216492,4.0238,2622.3,2622.2,1.72344]
[1729664216798,4.0238,2622.3,2622.2,2.62344]
[1729664217395,3.2078,2622.3,2622.2,2.62344]
[1729664217991,3.2078,2622.3,2622.2,3.01204]
[1729664218406,0.3846,2622.4,2622.3,0.34343]
[1729664218702,0.72802,2622.4,2622.3,1.72343]
[1729664219499,0.72802,2622.4,2622.3,1.38]
[1729664219886,0.72802,2622.4,2622.3,1.72343]
[1729664220193,0.72802,2622.4,2622.3,1.38]
[1729664220698,0.72802,2622.4,2622.3,1.7679]
[1729664221395,0.72802,2622.4,2622.3,2.63058668]
[1729664221596,0.72802,2622.4,2622.3,3.53058668]
[1729664222394,0.3846,2622.4,2622.3,3.87401668]
[1729664222593,0.34341,2622.5,2622.3,5.25401668]
[1729664222803,0.3434,2622.5,2622.4,1.38]
[1729664223202,0.3434,2622.5,2622.4,6.5736]
[1729664223413,0.3434,2622.5,2622.4,5.1936]
[1729664223705,0.3434,2622.5,2622.4,1.38]
[1729664223997,0.3434,2622.5,2622.4,2.28]
[1729664226301,0.3434,2622.5,2622.4,6.0936]
[1729664226505,0.3434,2622.5,2622.4,6.43702]
[1729664226694,0.3434,2622.5,2622.4,6.0936]
[1729664228103,0.3434,2622.5,2622.4,6.43702]
[1729664228405,0.3434,2622.5,2622.4,6.0936]
[1729664228706,0.3434,2622.5,2622.4,2.28]
[1729664229102,0.3434,2622.5,2622.4,3.66]
[1729664229308,0.3434,2622.5,2622.4,6.0936]
[1729664230908,0.3434,2622.5,2622.4,7.4736]
[1729664231098,0.3434,2622.5,2622.4,6.0936]
[1729664231299,0.3434,2622.5,2622.4,2.28]
[1729664232006,0.3434,2622.5,2622.4,3.66]
[1729664232901,0.3434,2622.5,2622.4,0.9]
[1729664233110,0.3434,2622.5,2622.4,2.28]
[1729664240514,0.3434,2622.5,2622.4,4.00342]
[1729664240707,0.3434,2622.5,2622.4,2.28]
[1729664242113,0.3434,2622.5,2622.4,4.00342]
[1729664242827,0.3434,2622.5,2622.4,4.06442]
[1729664243720,0.3434,2622.6,2622.5,0.3434]
[1729664244023,0.34339,2622.6,2622.5,1.38]
[1729664244420,0.34339,2622.6,2622.5,1.7791]
[1729664245321,0.34339,2622.6,2622.5,2.1225]
[1729664245716,0.34338,2622.7,2622.5,1.7791]
[1729664246024,0.8162,2622.8,2622.6,1.72339]
[1729664246025,1.15957,2622.8,2622.6,1.72339]
[1729664246217,1.15957,2622.8,2622.7,1.72338]
[1729664246712,1.15957,2622.8,2622.7,1.38]
[1729664246917,1.15956,2622.8,2622.7,1.38]
[1729664256934,0.75736,2622.8,2622.7,1.38]
[1729664260433,0.75736,2622.8,2622.7,2.399]
[1729664264824,0.75736,2622.8,2622.7,1.38]
[1729664265029,4.06595,2623.7,2622.9,0.34334]
[1729664265230,0.85821,2623.5,2622.9,0.34335]
[1729664265426,0.34333,2623.1,2623.0,0.4085]
[1729664265948,0.34333,2623.1,2623.0,0.75184]
[1729664266236,0.34333,2623.1,2623.0,0.4085]
[1729664266622,0.34333,2623.1,2623.0,2.13184]
[1729664267034,1.15579,2623.4,2623.2,0.34331]
[1729664267230,0.74289,2623.4,2623.3,3.779]
[1729664269140,0.74289,2623.4,2623.3,4.2054]
[1729664269432,0.3996,2623.4,2623.3,4.2054]
[1729664269633,0.34328,2623.5,2623.3,4.2054]
[1729664269838,0.34328,2623.5,2623.4,1.72328]
[1729664270032,0.34327,2623.5,2623.4,1.72328]
[1729664270730,0.34327,2623.5,2623.4,1.38]
[1729664270929,0.34327,2623.5,2623.4,1.72328]
[1729664271138,0.34327,2623.5,2623.4,1.38]
[1729664271840,0.8579,2624.4,2623.4,6.572]
[1729664272033,0.8579,2624.4,2623.3,1.4454]
[1729664272034,0.34321,2624.0,2623.8,0.34323]
[1729664272339,2.056,2624.4,2623.9,1.019]
[1729664272340,1.1981,2624.4,2623.9,1.019]
[1729664272539,0.34317,2624.3,2624.0,0.3432]
[1729664273038,0.34317,2624.3,2624.2,1.38]
[1729664274840,0.85761,2625.3,2624.2,6.5704]
[1729664275029,0.409,2625.2,2624.4,3.2078]
[1729664275229,0.409,2625.2,2625.1,1.38]
[1729664275230,0.75205,2625.2,2625.1,1.38]
[1729664275632,4.56165,2625.2,2625.1,1.38]
[1729664275834,0.34308,2625.0,2624.9,1.013]
[1729664276029,0.34308,2625.0,2624.7,1.013]
[1729664276030,0.3431,2624.8,2624.7,1.013]
[1729664276237,0.797,2624.9,2624.7,1.013]
[1729664276439,0.3863,2624.8,2624.1,4.05894595]
[1729664276746,0.3863,2624.8,2624.2,1.013]
[1729664276747,0.34316,2624.4,2624.2,1.013]
[1729664277036,0.3863,2624.8,2624.3,1.38]
[1729664277242,0.7294,2624.8,2624.7,1.38]
[1729664277443,4.539,2624.8,2624.7,2.393]
[1729664277940,4.539,2624.8,2624.7,1.38]
[1729664278136,4.539,2624.8,2624.7,2.393]
[1729664278342,4.06526,2625.8,2624.7,7.5826]
[1729664278535,0.386,2625.7,2624.9,1.38]
[1729664278733,0.386,2625.7,2625.6,1.38]
[1729664278734,0.779,2625.7,2625.6,1.38]
[1729664279044,0.34305,2625.2,2624.8,4.77669]
[1729664279346,0.34305,2625.2,2624.9,1.35608]
[1729664279541,0.34305,2625.2,2625.1,1.38]
[1729664279739,0.779,2625.7,2625.1,4.5878]
[1729664279929,1.12198,2625.7,2625.6,1.38]
[1729664280130,4.93078,2625.7,2625.6,1.38]
[1729664281935,1.12198,2625.7,2625.6,1.38]
[1729664282336,1.12198,2625.7,2625.6,2.76]
[1729664282541,1.12198,2625.7,2625.6,1.38]
[1729664282839,1.12198,2625.7,2625.6,2.76]
[1729664283241,1.12198,2625.7,2625.6,1.38]
[1729664284037,1.12198,2625.7,2625.6,2.76]
[1729664284342,1.12198,2625.7,2625.6,1.38]
[1729664284835,0.34305,2625.2,2625.1,1.012]
[1729664285145,0.34305,2625.2,2625.1,1.38]
[1729664285342,0.34305,2625.2,2625.1,2.392]
[1729664285545,0.34305,2625.2,2625.1,1.38]
[1729664285743,0.34305,2625.2,2625.1,2.392]
[1729664286742,0.34305,2625.2,2625.1,1.38]
[1729664287045,0.34305,2625.2,2625.1,2.392]
[1729664289041,0.34305,2625.2,2625.1,5.5998]
[1729664290435,0.34305,2625.2,2625.1,2.392]
[1729664295248,0.34305,2625.2,2625.1,1.012]
[1729664295441,0.34305,2625.2,2625.1,2.392]
[1729664298846,0.34305,2625.2,2625.1,2.79025184]
[1729664304247,0.34305,2625.2,2624.8,0.4041]
[1729664304248,0.34309,2624.9,2624.8,0.4041]
[1729664304450,0.34309,2624.9,2624.8,1.7841]
[1729664305649,0.34309,2624.9,2624.8,1.38]
[1729664307151,0.34309,2624.9,2624.5,0.3964]
[1729664307351,0.85779,2624.7,2624.2,3.2078]
[1729664307657,0.34317,2624.3,2624.2,1.021]
[1729664308465,0.34317,2624.3,2624.2,2.401]
[1729664309848,0.34317,2624.3,2624.2,1.38]
[1729664310254,4.06566,2624.5,2624.2,2.98]
[1729664310459,0.34322,2623.9,2623.8,0.3964]
[1729664310654,0.34322,2623.9,2623.8,4.3974]
[1729664313862,0.34322,2623.9,2623.8,3.3764]
[1729664314163,0.34322,2623.9,2623.8,4.3974]
[1729664316458,0.7726,2624.1,2623.8,4.3974]
[1729664316760,3.2078,2624.5,2623.9,0.4196]
[1729664316761,4.06567,2624.5,2623.9,0.4196]
[1729664317060,0.75167,2624.4,2623.9,4.0397]
[1729664317260,0.75167,2624.4,2624.2,0.34317]
[1729664317561,0.75167,2624.4,2624.3,3.4036]
[1729664317956,0.34317,2624.4,2624.3,3.74677]
[1729664318263,0.34317,2624.4,2624.3,3.4036]
[1729664322666,0.34317,2624.4,2624.3,3.74677]
[1729664323164,0.34315,2624.5,2624.3,3.74677]
[1729664323358,0.34315,2624.5,2624.4,1.021]
[1729664323566,3.608,2624.8,2624.4,1.021]
[1729664323759,0.34311,2624.7,2624.6,2.98]
[1729664327869,4.2183,2624.7,2624.4,2.98]
[1729664328068,0.34314,2624.5,2624.4,4.001]
[1729664328567,0.34314,2624.5,2624.4,1.021]
[1729664328869,0.34314,2624.5,2624.4,4.001]
[1729664330163,0.34314,2624.5,2624.4,2.98]
[1729664333072,3.55094,2624.5,2624.4,2.98]
[1729664333463,7.36134,2624.5,2624.4,2.98]
[1729664333764,0.34315,2624.4,2624.3,1.021]
[1729664333966,0.34317,2624.3,2624.2,4.001]
[1729664334165,1.15937,2624.3,2624.2,4.001]
[1729664334370,4.96977,2624.3,2624.2,4.001]
[1729664335770,1.15937,2624.3,2624.2,4.001]
[1729664336174,1.15937,2624.3,2624.2,2.98]
[1729664338274,0.8162,2624.3,2624.2,1.37]
[1729664338481,4.96977,2624.3,2624.2,1.37]
[1729664340475,1.15937,2624.3,2624.2,1.37]
[1729664342380,8.17757,2624.3,2624.2,1.37]
[1729664342575,4.96977,2624.3,2624.2,1.37]
[1729664343276,8.17757,2624.3,2624.2,1.37]
[1729664348491,1.15937,2624.3,2624.2,1.37]
[1729664348988,4.96977,2624.3,2624.2,1.37]
[1729664349682,1.15937,2624.3,2624.2,1.37]
[1729664351782,0.34317,2624.3,2624.2,1.37]
[1729664351984,0.34317,2624.3,2624.2,3.08318]
[1729664352390,0.34317,2624.3,2624.2,1.71318]
[1729664352891,0.34317,2624.3,2624.2,1.37]
[1729664353784,0.34317,2624.3,2624.2,3.08318]
[1729664354385,0.34317,2624.3,2624.2,1.71318]
[1729664355889,0.34317,2624.3,2624.2,1.37]
[1729664357296,0.34317,2624.3,2624.2,1.71318]
[1729664358590,0.34317,2624.3,2624.2,3.08318]
[1729664359193,0.34317,2624.3,2624.2,1.37]
[1729664359595,0.34317,2624.3,2624.2,3.08318]
[1729664359897,0.34317,2624.3,2624.2,3.08317]
[1729664360098,0.34317,2624.3,2624.2,1.71317]
[1729664360693,0.34317,2624.3,2624.2,3.08317]
[1729664360900,0.34317,2624.3,2624.2,2.74]
[1729664361692,0.4267,2624.6,2624.2,2.74]
[1729664361893,0.76983,2624.6,2624.5,1.37]
[1729664362498,0.76983,2624.6,2624.5,1.7702]
[1729664362499,0.34313,2624.6,2624.5,1.7702]
[1729664363992,0.34313,2624.6,2624.5,2.8252]
[1729664364197,3.2078,2624.7,2624.5,2.8252]
[1729664364198,3.55092,2624.7,2624.5,2.8252]
[1729664364496,3.55091,2624.7,2624.6,1.37]
[1729664367602,3.55091,2624.7,2624.6,1.71313]
[1729664368195,3.55091,2624.7,2624.6,1.37]
[1729664368502,0.34311,2624.7,2624.6,1.37]
[1729664373509,0.34311,2624.7,2624.6,2.397]
[1729664376206,0.34311,2624.7,2624.6,1.37]
[1729664376402,0.34311,2624.7,2624.6,2.397]
[1729664379408,0.34315,2624.5,2624.4,1.71314]
[1729664379600,0.34315,2624.5,2624.4,3.56254]
[1729664379801,0.34315,2624.5,2624.4,4.93254]
[1729664384106,0.34315,2624.5,2624.4,4.5894]
[1729664389103,0.34315,2624.4,2624.3,0.86241281]
[1729664389310,0.34318,2624.2,2624.1,1.4207]
[1729664389513,0.34318,2624.2,2624.1,1.37]
[1729664390204,0.34322,2623.9,2623.8,0.3937]
[1729664390407,0.34323,2623.8,2623.7,1.8720266]
[1729664390606,0.34323,2623.8,2623.7,2.397]
[1729664390607,1.15733,2623.8,2623.7,2.397]
[1729664390806,1.15733,2623.8,2623.7,2.74024]
[1729664391016,1.15733,2623.8,2623.7,2.397]
[1729664391409,1.15733,2623.8,2623.7,1.37]
[1729664391710,1.15733,2623.8,2623.7,2.397]
[1729664393303,1.15733,2623.8,2623.7,1.027]
[1729664393516,1.15733,2623.8,2623.7,2.397]
[1729664396219,1.15733,2623.8,2623.7,2.74024]
[1729664399316,0.34322,2623.9,2623.8,0.34323]
[1729664399515,0.34322,2623.9,2623.8,1.71323]
[1729664401425,0.34322,2623.9,2623.8,2.13613]
[1729664402312,0.34322,2623.9,2623.8,1.7929]
[1729664404231,0.34322,2623.9,2623.8,2.13613]
[1729664405123,0.34322,2624.0,2623.9,0.34322]
[1729664405319,1.1995,2624.1,2623.9,1.7889]
[1729664405529,1.15,2624.1,2624.0,1.7132]
[1729664405831,0.3432,2624.1,2624.0,1.7132]
[1729664406024,3.2078,2624.2,2624.0,1.37]
[1729664406327,3.55099,2624.2,2624.1,1.71319]
[1729664406726,0.7889,2624.3,2624.1,1.37]
[1729664407027,1.13207,2624.3,2624.2,2.10248]
[1729664407222,0.4143,2624.6,2624.3,0.34316]
[1729664407223,0.34317,2624.4,2624.3,0.34316]
[1729664407428,0.34317,2624.4,2624.3,2.13896]
[1729664407731,0.34317,2624.4,2624.3,1.7958]
[1729664408417,1.15885,2624.5,2624.4,0.34315]
[1729664408622,1.15884,2624.5,2624.4,1.37]
[1729664408821,1.15884,2624.5,2624.4,1.71315]
[1729664409225,0.8157,2624.5,2624.4,1.71315]
[1729664409426,1.15884,2624.5,2624.4,1.71315]
[1729664409618,0.34314,2624.5,2624.4,1.71315]
[1729664409918,0.34314,2624.5,2624.4,2.10855]
[1729664410119,0.4133,2624.7,2624.4,2.10855]
[1729664410320,0.75641,2624.7,2624.6,1.37]
[1729664411428,0.4266,2624.8,2624.6,1.37]
[1729664411633,0.76971,2624.8,2624.7,1.71311]
[1729664412526,0.76971,2624.8,2624.7,1.37]
[1729664413121,0.76971,2624.8,2624.7,2.1666]
[1729664413535,0.76971,2624.8,2624.7,2.50971]
[1729664413729,0.76971,2624.8,2624.7,2.1666]
[1729664414128,0.76971,2624.8,2624.7,2.50971]
[1729664414326,0.76971,2624.8,2624.7,2.1666]
[1729664415532,0.76971,2624.8,2624.7,1.7692]
[1729664416029,0.76971,2624.8,2624.7,1.37]
[1729664416224,0.34314,2624.5,2624.4,2.50625]
[1729664416429,0.4266,2624.8,2624.4,4.5151]
[1729664416630,0.7697,2624.8,2624.7,1.37]
[1729664419930,0.7697,2624.8,2624.7,1.71311]
[1729664420133,0.7697,2624.8,2624.7,1.37]
[1729664420533,0.7697,2624.8,2624.7,1.7767]
[1729664431248,0.7697,2624.8,2624.7,1.37]
[1729664437037,0.34313,2624.6,2624.5,0.4116]
[1729664437240,0.34313,2624.6,2624.5,1.37]
[1729664441041,4.15353,2624.6,2624.5,1.37]